bitfinex/quotes_ETHUSD_20250724
["timestamp","ask_amount","ask_price","bid_price","bid_amount"]
[1753324381202,0.042,3648.9,3648.8,3.29062705]
[1753324381382,0.042,3648.9,3648.8,10.28242157]
[1753324381693,0.042,3648.9,3648.8,10.70803716]
[1753324381852,0.002,3649.4,3649.3,4.11955155]
[1753324382041,0.002,3649.4,3649.3,14.74862479]
[1753324382246,0.002,3649.4,3649.3,14.73534976]
[1753324382466,0.002,3649.4,3649.3,16.92181847]
[1753324382776,0.002,3649.5,3649.4,3.29017646]
[1753324382948,0.002,3649.5,3649.4,3.30344961]
[1753324383288,0.002,3649.5,3649.4,6.92044961]
[1753324383448,0.002,3649.5,3649.4,7.45717646]
[1753324383641,0.002,3649.5,3649.4,8.65167613]
[1753324385485,0.002,3649.5,3649.4,2.74017646]
[1753324385652,0.4763,3649.5,3649.4,6.91017646]
[1753324387889,0.4763,3649.5,3649.4,2.74017646]
[1753324388104,0.4763,3649.5,3649.4,6.91117646]
[1753324388246,0.4763,3649.5,3649.4,2.74017646]
[1753324388450,0.4763,3649.5,3649.4,6.91117646]
[1753324389481,0.4763,3649.5,3649.4,2.74017646]
[1753324389690,0.002,3649.5,3649.4,6.91117646]
[1753324389988,0.002,3649.5,3649.4,8.15035157]
[1753324390789,0.002,3649.5,3649.4,15.44774978]
[1753324391098,1.2143,3649.5,3649.2,4.171]
[1753324391256,0.7844,3649.5,3649.3,2.74020148]
[1753324391451,0.4299,3649.4,3649.3,2.74020148]
[1753324392401,0.7844,3649.5,3649.4,2.74017646]
[1753324392573,0.002,3649.5,3649.4,3.70591425]
[1753324392767,0.002,3649.5,3649.4,7.88591425]
[1753324393102,0.002,3649.5,3649.4,6.92017646]
[1753324393251,0.002,3649.5,3649.4,7.05697646]
[1753324398396,0.002,3649.5,3649.4,2.87697646]
[1753324398582,0.4319,3649.5,3649.4,7.05497646]
[1753324398767,0.4319,3649.5,3649.4,0.1368]
[1753324398967,1.198,3649.5,3649.4,0.1368]
[1753324399197,1.198,3649.5,3649.2,4.178]
[1753324399422,0.4299,3649.4,3649.2,4.3158]
[1753324399975,0.4299,3649.4,3649.2,0.1368]
[1753324400181,0.4299,3649.3,3649.2,0.1368]
[1753324402703,0.4299,3649.3,3649.2,2.87712664]
[1753324403208,0.002,3649.4,3649.3,2.74025155]
[1753324404001,0.4319,3649.4,3649.3,2.74025155]
[1753324404320,0.002,3649.4,3649.3,2.74025155]
[1753324408385,0.4319,3649.4,3649.3,2.74025155]
[1753324409514,0.002,3649.4,3649.3,2.74025155]
[1753324409680,0.002,3649.4,3649.3,3.71959663]
[1753324409876,0.002,3649.4,3649.3,4.15599663]
[1753324410081,0.002,3649.4,3649.3,3.71959663]
[1753324410315,0.002,3649.4,3649.3,2.74025155]
[1753324411941,0.8166,3649.4,3649.3,2.74025155]
[1753324412118,1.2465,3649.4,3649.3,2.74025155]
[1753324414608,0.4319,3649.4,3649.3,2.74025155]
[1753324414934,0.002,3649.4,3649.3,2.74025155]
[1753324416710,0.4319,3649.4,3649.3,2.74025155]
[1753324417208,0.4319,3649.4,3649.2,0.1368]
[1753324417407,0.4319,3649.4,3648.5,0.7781]
[1753324417408,0.7838,3649.3,3648.7,2.74063999]
[1753324417606,0.4299,3649.2,3648.9,0.1368]
[1753324418147,0.7838,3649.3,3648.9,0.1368]
[1753324418356,0.4299,3649.1,3648.9,0.1368]
[1753324418857,0.4299,3649.0,3648.9,0.1368]
[1753324419220,0.4299,3649.0,3648.9,2.87735194]
[1753324419834,0.4299,3649.0,3648.9,0.1368]
[1753324420445,0.4299,3649.0,3648.9,2.87735194]
[1753324420648,0.7838,3649.3,3649.1,2.74039984]
[1753324420939,0.7838,3649.3,3648.9,0.1368]
[1753324420940,0.7838,3649.3,3649.2,2.74032664]
[1753324421128,1.2278,3649.3,3649.0,2.74045841]
[1753324421335,0.002,3649.4,3649.0,7.86348703]
[1753324421529,0.002,3649.4,3649.3,0.1368]
[1753324421838,0.002,3649.4,3649.3,2.87705155]
[1753324424357,0.002,3649.4,3649.3,2.87805155]
[1753324424558,0.002,3649.4,3649.3,8.06102658]
[1753324424744,0.002,3649.4,3649.3,9.8352942]
[1753324426756,0.002,3649.4,3649.3,10.6276942]
[1753324433147,0.002,3649.4,3649.3,10.1869942]
[1753324433367,0.002,3649.4,3649.3,10.6276942]
[1753324433969,0.002,3649.4,3649.3,4.6655942]
[1753324434171,0.446,3649.4,3649.3,0.1378]
[1753324434501,0.446,3649.4,3649.3,2.87805155]
[1753324435894,0.002,3649.4,3649.3,2.87805155]
[1753324438565,0.002,3649.4,3649.3,0.1378]
[1753324438780,0.446,3649.4,3649.3,0.1378]
[1753324439124,0.446,3649.4,3649.3,0.001]
[1753324439263,3.99407646,3649.4,3649.3,0.001]
[1753324439467,6.99407646,3649.4,3649.3,0.001]
[1753324441511,4.2539,3649.4,3649.3,0.001]
[1753324441867,3.8099,3649.4,3649.3,0.001]
[1753324442215,4.2539,3649.4,3649.3,0.001]
[1753324442505,4.2881522,3649.4,3649.3,0.001]
[1753324442682,4.2539,3649.4,3649.3,0.001]
[1753324443710,3.8099,3649.4,3649.3,0.001]
[1753324443912,3.002,3649.4,3649.3,0.001]
[1753324444612,3.002,3649.4,3649.3,2.74125155]
[1753324444992,3.002,3649.4,3649.3,2.87805155]
[1753324447570,4.176,3649.4,3649.3,6.31875155]
[1753324447771,4.176,3649.4,3649.3,4.30657056]
[1753324449225,0.002,3649.4,3649.3,4.30657056]
[1753324450229,0.002,3649.4,3649.3,4.85657056]
[1753324453333,0.002,3649.4,3649.3,7.85657056]
[1753324455232,0.002,3649.5,3649.4,3.29017646]
[1753324455410,0.002,3649.5,3649.4,5.94597719]
[1753324455798,0.002,3649.5,3649.4,6.73517719]
[1753324456229,0.002,3649.5,3649.4,10.90717719]
[1753324456428,0.002,3649.5,3649.4,6.73517719]
[1753324465040,0.002,3649.5,3649.4,6.26927719]
[1753324465620,0.002,3649.5,3649.4,6.73517719]
[1753324467745,0.002,3649.5,3649.4,6.73617719]
[1753324471210,0.04,3649.9,3649.4,6.73617719]
[1753324471211,0.04,3649.9,3649.8,3.28987615]
[1753324471409,0.04,3649.9,3649.8,10.47786821]
[1753324471606,0.04,3649.9,3649.8,10.61466821]
[1753324471807,0.04,3649.9,3649.8,11.08056821]
[1753324472826,0.04,3649.9,3649.8,10.61466821]
[1753324478455,0.04,3649.9,3649.8,11.08056821]
[1753324486843,0.04,3649.9,3649.8,10.61466821]
[1753324488386,0.04,3649.9,3649.8,11.05126821]
[1753324488672,0.04,3649.9,3649.8,10.61466821]
[1753324493215,0.042,3649.9,3649.8,10.61466821]
[1753324493641,0.042,3649.9,3649.8,11.05126821]
[1753324495279,0.042,3649.9,3649.8,10.61466821]
[1753324496280,0.4905,3649.9,3649.8,9.73767436]
[1753324496579,0.042,3649.9,3649.8,9.73767436]
[1753324498096,0.042,3649.9,3649.8,10.17427436]
[1753324500483,0.042,3649.9,3649.8,15.12907436]
[1753324500690,1e-08,3649.9,3649.8,15.12907436]
[1753324500853,1e-08,3649.9,3649.8,17.66098803]
[1753324502187,1e-08,3649.9,3649.8,20.66098803]
[1753324504488,1e-08,3649.9,3649.8,9.74638982]
[1753324504694,1e-08,3649.9,3649.8,2.87667615]
[1753324504906,0.44850001,3649.9,3649.8,2.87667615]
[1753324505055,1e-08,3649.9,3649.8,2.87667615]
[1753324505765,0.44850001,3649.9,3649.8,2.87667615]
[1753324507071,1e-08,3649.9,3649.8,2.87667615]
[1753324507262,1.28130001,3649.9,3649.8,2.87667615]
[1753324511302,33.8236,3649.8,3649.4,0.001]
[1753324511496,30.0,3649.3,3648.7,0.001]
[1753324511660,6.52052705,3648.8,3648.7,0.001]
[1753324511858,10.70552705,3648.8,3648.7,0.001]
[1753324512195,41.15512705,3648.8,3648.7,0.001]
[1753324512392,41.66522058,3648.8,3648.7,0.001]
[1753324512557,41.15512705,3648.8,3648.7,0.001]
[1753324515308,4.2295,3648.8,3648.7,0.001]
[1753324515599,11.29092705,3648.8,3648.7,0.001]
[1753324515798,8.5503,3648.8,3648.7,0.001]
[1753324516700,11.29092705,3648.8,3648.7,0.001]
[1753324517059,41.29092705,3648.8,3648.7,0.001]
[1753324517962,11.29092705,3648.8,3648.7,0.001]
[1753324518177,41.29092705,3648.8,3648.7,0.001]
[1753324519198,8.5503,3648.8,3648.7,0.001]
[1753324519863,11.29092705,3648.8,3648.7,0.001]
[1753324520264,8.5503,3648.8,3648.7,0.001]
[1753324521764,11.29092705,3648.8,3648.7,0.001]
[1753324524681,8.5503,3648.8,3648.7,0.001]
[1753324524982,11.29092705,3648.8,3648.7,0.001]
[1753324526113,41.29092705,3648.8,3648.7,0.001]
[1753324526624,4.3663,3648.8,3648.7,0.001]
[1753324526786,8.5473,3648.8,3648.7,0.001]
[1753324527414,11.28792705,3648.8,3648.7,0.001]
[1753324528384,41.28792705,3648.8,3648.7,0.001]
[1753324529989,11.28792705,3648.8,3648.7,0.001]
[1753324530491,11.28592705,3648.8,3648.7,0.001]
[1753324530892,3.9167,3648.8,3648.7,0.001]
[1753324531296,8.0957,3648.8,3648.7,0.001]
[1753324532334,0.9167,3648.8,3648.7,0.001]
[1753324532504,4.18,3648.8,3648.7,0.001]
[1753324534108,4.6296,3648.8,3648.7,0.001]
[1753324535197,4.18,3648.8,3648.7,0.001]
[1753324536317,4.6296,3648.8,3648.7,0.001]
[1753324537000,4.18,3648.8,3648.7,0.001]
[1753324537310,0.4496,3649.0,3648.8,2.74060398]
[1753324537695,4.177,3648.9,3648.8,2.74060398]
[1753324537940,4.177,3648.9,3648.7,0.001]
[1753324538098,4.177,3648.8,3648.7,0.001]
[1753324540233,4.177,3648.8,3648.7,2.74170216]
[1753324540734,4.176,3648.8,3648.7,0.001]
[1753324541229,4.176,3648.8,3648.7,2.74170216]
[1753324541835,4.176,3648.8,3648.7,0.001]
[1753324543294,4.176,3648.8,3648.7,2.74170216]
[1753324543500,0.4496,3649.0,3648.8,2.7406197]
[1753324543701,4.174,3648.8,3648.7,2.74169251]
[1753324544016,4.174,3648.8,3648.7,0.001]
[1753324544724,4.174,3648.8,3648.7,2.74170216]
[1753324544930,0.9323,3649.1,3648.8,2.74061974]
[1753324545130,4.174,3649.0,3648.8,2.74061974]
[1753324545324,0.002,3649.3,3648.8,2.74062705]
[1753324545528,4.64955408,3649.2,3648.8,2.74062705]
[1753324545728,0.4423,3649.1,3648.9,2.74054176]
[1753324545946,4.173,3649.0,3648.9,2.74054176]
[1753324546708,0.1388,3649.3,3649.1,2.74039019]
[1753324547010,0.1388,3649.3,3649.1,2.74040174]
[1753324547215,0.002,3649.3,3649.2,10.33202485]
[1753324547529,4.178,3650.1,3649.8,3.54257615]
[1753324547726,4.178,3650.1,3649.8,9.85357436]
[1753324547919,4.178,3650.1,3649.8,10.32577436]
[1753324548116,4.178,3650.1,3649.8,11.63234832]
[1753324548319,0.002,3650.1,3649.8,12.18234832]
[1753324554558,0.002,3650.1,3649.8,16.35834832]
[1753324556460,0.002,3650.1,3649.8,12.18234832]
[1753324556651,0.002,3650.1,3649.8,16.35734832]
[1753324557173,0.002,3650.1,3649.8,16.49414832]
[1753324558957,0.002,3650.1,3649.8,12.31914832]
[1753324559162,0.002,3650.1,3649.8,16.49214832]
[1753324561006,0.002,3650.1,3650.0,3.28972602]
[1753324561288,0.002,3650.1,3650.0,10.34567534]
[1753324561450,0.002,3650.1,3650.0,10.33241345]
[1753324561652,0.002,3650.1,3650.0,10.80461345]
[1753324562106,1e-08,3650.1,3650.0,13.80461345]
[1753324562254,0.002,3650.3,3650.2,3.28957591]
[1753324562596,0.002,3650.3,3650.2,10.24927207]
[1753324562748,0.002,3650.3,3650.2,10.85827207]
[1753324564708,0.002,3650.3,3650.2,10.86027207]
[1753324576107,0.002,3650.7,3650.6,3.28927573]
[1753324576316,0.002,3650.7,3650.6,14.59917394]
[1753324576486,0.002,3650.7,3650.6,16.46982735]
[1753324576687,0.002,3650.7,3650.6,16.92952735]
[1753324578115,1e-08,3650.7,3650.6,16.92952735]
[1753324583202,1e-08,3650.7,3650.6,19.92952735]
[1753324586416,1e-08,3650.9,3650.8,3.28912567]
[1753324586622,1e-08,3650.9,3650.8,10.47350097]
[1753324586920,1e-08,3650.9,3650.8,11.07000097]
[1753324593095,1e-08,3651.1,3651.0,6.28897562]
[1753324593320,0.002,3651.4,3651.3,6.52715058]
[1753324593631,0.002,3651.4,3651.3,13.29744661]
[1753324593807,0.002,3651.4,3651.3,14.30714661]
[1753324593993,0.002,3651.4,3651.3,10.27694661]
[1753324594194,0.002,3651.7,3651.6,2.73852557]
[1753324594427,0.002,3651.7,3651.6,13.21652378]
[1753324594620,0.002,3651.7,3651.6,15.97653191]
[1753324595231,0.002,3651.7,3651.6,16.43623191]
[1753324596528,0.002,3651.7,3651.6,15.97653191]
[1753324597431,0.002,3651.7,3651.6,16.43623191]
[1753324598697,0.002,3651.7,3651.6,16.98623191]
[1753324598901,0.04,3651.9,3651.7,4.05155058]
[1753324599118,0.04,3651.9,3651.7,6.84711992]
[1753324599322,0.04,3651.9,3651.7,6.83388992]
[1753324599822,0.04,3651.9,3651.8,6.28837559]
[1753324600019,1e-08,3651.9,3651.8,11.06147559]
[1753324600603,0.04,3652.9,3652.8,2.73762593]
[1753324600813,0.04,3652.9,3652.8,6.90362593]
[1753324601014,0.04,3652.9,3652.8,7.59042593]
[1753324602253,0.04,3652.9,3652.8,12.30126963]
[1753324602427,0.04,3652.9,3652.8,12.77056963]
[1753324603606,0.04,3652.9,3652.8,12.30126963]
[1753324607833,0.04,3652.9,3652.8,12.77056963]
[1753324608434,0.04,3652.9,3652.8,8.13526963]
[1753324608635,0.04,3652.9,3652.8,7.58942593]
[1753324611123,0.04,3652.9,3652.8,8.05872593]
[1753324611319,0.04,3652.9,3652.8,7.58942593]
[1753324611850,0.5117,3652.9,3652.8,7.58942593]
[1753324613038,0.04,3652.9,3652.8,7.58942593]
[1753324613544,0.04,3652.9,3652.8,9.05513117]
[1753324617751,0.04,3652.9,3652.8,9.52443117]
[1753324617937,0.04,3652.9,3652.8,13.27573117]
[1753324620415,0.04,3652.9,3652.8,12.05513117]
[1753324620760,0.5117,3652.9,3652.8,0.1368]
[1753324620936,1.3163,3652.9,3652.8,0.1368]
[1753324621573,0.8225,3652.8,3651.8,6.31099821]
[1753324621869,0.85672126,3652.7,3652.6,0.1368]
[1753324622067,1.32842126,3652.7,3652.6,0.1368]
[1753324622837,1.2942,3652.7,3652.6,2.87457583]
[1753324624370,0.042,3652.9,3652.8,2.73762593]
[1753324624593,0.042,3652.9,3652.8,9.04862414]
[1753324625073,0.042,3652.9,3652.8,9.18542414]
[1753324625074,0.5137,3652.9,3652.8,9.18542414]
[1753324625536,0.042,3652.9,3652.8,9.18542414]
[1753324626171,0.042,3652.9,3652.8,11.71304004]
[1753324626671,0.042,3652.9,3652.8,11.24374004]
[1753324628270,0.042,3652.9,3652.8,15.40874004]
[1753324633351,0.042,3652.9,3652.8,15.85184004]
[1753324633547,0.042,3652.9,3652.8,15.40874004]
[1753324634378,0.4887,3652.9,3652.8,2.87442593]
[1753324635983,0.4887,3652.9,3652.8,0.1368]
[1753324636191,0.4887,3652.9,3652.8,2.87442593]
[1753324636369,0.4887,3652.9,3652.8,0.1368]
[1753324637189,1.2693,3652.9,3652.8,0.1368]
[1753324637982,1.2693,3652.9,3652.8,2.87442593]
[1753324639490,0.042,3652.9,3652.8,2.87442593]
[1753324640356,0.4887,3652.9,3652.8,2.87442593]
[1753324640557,0.042,3652.9,3652.8,2.87442593]
[1753324642485,0.042,3652.9,3652.8,4.52754958]
[1753324644862,0.042,3652.9,3652.8,4.97064958]
[1753324645263,0.042,3652.9,3652.8,5.07754958]
[1753324645463,0.042,3652.9,3652.8,5.52064958]
[1753324648011,0.042,3652.9,3652.8,6.30474958]
[1753324649803,0.042,3652.9,3652.8,8.69154958]
[1753324649986,1.3177,3652.9,3652.8,7.03842593]
[1753324650166,1.3177,3652.9,3652.8,2.87442593]
[1753324651403,0.042,3652.9,3652.8,2.87442593]
[1753324651572,0.042,3652.9,3652.8,3.42442593]
[1753324655882,0.042,3652.9,3652.8,3.86752593]
[1753324656076,0.042,3652.9,3652.8,5.65339958]
[1753324656771,0.042,3652.9,3652.8,9.81739958]
[1753324658295,0.042,3652.9,3652.8,16.12839779]
[1753324661111,0.042,3652.9,3652.8,15.68529779]
[1753324661875,0.042,3652.9,3652.8,4.66029958]
[1753324662080,0.4881,3652.9,3652.8,2.87442593]
[1753324662805,1.2834,3652.9,3652.8,0.1368]
[1753324663172,1.2834,3652.9,3652.8,2.87442593]
[1753324663378,1.2834,3652.9,3652.8,0.1368]
[1753324664799,1.2834,3652.9,3652.4,2.73791924]
[1753324664800,1.2834,3652.9,3652.4,2.73789524]
[1753324665105,0.48032032,3652.8,3652.5,0.1368]
[1753324665308,0.7953,3652.7,3652.5,0.1368]
[1753324665477,0.4461,3652.6,3652.5,2.87465078]
[1753324671013,0.4461,3652.6,3652.5,0.1368]
[1753324671213,0.48032219,3652.6,3652.1,2.73809018]
[1753324671405,0.7521,3652.5,3652.3,0.1368]
[1753324671602,0.03422407,3652.4,3652.3,0.1368]
[1753324671809,0.7521,3652.3,3652.0,0.1368]
[1753324672004,0.03422594,3652.2,3651.9,0.001]
[1753324672193,0.8315,3652.1,3652.0,2.73822562]
[1753324672396,1.2776,3652.1,3651.9,0.001]
[1753324672596,0.4461,3652.0,3651.9,0.001]
[1753324674005,0.48032782,3652.0,3651.9,0.001]
[1753324674216,0.4461,3652.0,3651.9,0.001]
[1753324675688,0.4461,3652.0,3651.9,2.73930061]
[1753324677428,0.8315,3652.1,3651.9,2.73930061]
[1753324677626,0.8315,3652.1,3651.9,2.73927475]
[1753324677843,1.2776,3652.1,3651.9,2.73927475]
[1753324678301,1.2776,3652.1,3652.0,2.73822562]
[1753324678919,1.2776,3652.1,3651.9,2.73927959]
[1753324679216,0.4461,3652.0,3651.9,0.001]
[1753324681399,0.48032782,3652.0,3651.9,0.001]
[1753324682203,0.4461,3652.0,3651.9,0.001]
[1753324683130,0.48032782,3652.0,3651.9,0.001]
[1753324684033,1.2278,3652.0,3651.9,0.001]
[1753324684431,3.51992562,3652.0,3651.9,0.001]
[1753324684727,3.96602562,3652.0,3651.9,0.001]
[1753324684900,4.00025344,3652.0,3651.9,0.001]
[1753324685732,1.26202782,3652.0,3651.9,0.001]
[1753324685921,5.3928,3652.0,3651.9,0.001]
[1753324687132,1.2278,3652.0,3651.9,0.001]
[1753324687434,4.165,3652.0,3651.9,0.001]
[1753324689304,0.1368,3652.1,3651.9,0.001]
[1753324689499,4.6066,3652.0,3651.9,0.001]
[1753324689705,0.4416,3652.0,3651.9,0.001]
[1753324690006,4.6066,3652.0,3651.9,0.001]
[1753324690937,0.4416,3652.0,3651.9,0.001]
[1753324691152,4.165,3652.0,3651.9,0.001]
[1753324691323,4.165,3652.0,3651.9,2.73930061]
[1753324691647,4.165,3652.0,3651.9,3.31590061]
[1753324695337,4.165,3652.0,3651.9,0.1378]
[1753324695641,5.3885,3652.0,3651.9,0.001]
[1753324699909,0.1368,3652.2,3651.9,0.001]
[1753324700238,4.164,3652.1,3651.9,0.4408]
[1753324700446,4.164,3652.2,3652.0,0.4398]
[1753324700736,0.002,3652.6,3652.4,2.73790675]
[1753324701139,0.002,3652.6,3652.5,2.73785078]
[1753324701338,0.002,3652.6,3652.5,3.31445078]
[1753324701541,4.166,3652.6,3652.5,3.31445078]
[1753324701765,4.166,3652.6,3652.5,2.87465078]
[1753324703256,4.166,3652.6,3652.5,0.1368]
[1753324703839,4.166,3652.6,3652.5,2.87465078]
[1753324704113,4.166,3652.6,3652.5,4.30802027]
[1753324705048,4.166,3652.6,3652.5,3.86822027]
[1753324705225,4.166,3652.6,3652.5,0.1368]
[1753324706645,0.4416,3652.4,3652.0,2.7382163]
[1753324706843,4.164,3652.3,3652.0,2.7382163]
[1753324708149,4.164,3652.3,3652.1,2.73814651]
[1753324708847,4.164,3652.3,3651.9,0.1378]
[1753324709037,4.164,3652.3,3651.9,2.87607206]
[1753324709416,4.164,3652.3,3652.0,2.73822562]
[1753324709738,4.164,3652.3,3652.0,2.73820619]
[1753324710124,4.164,3652.3,3652.1,2.73812441]
[1753324710318,4.166,3652.3,3652.1,2.73812441]
[1753324710528,4.166,3652.3,3652.0,2.73819446]
[1753324711148,0.47582594,3652.2,3651.9,0.1378]
[1753324711754,0.4416,3652.2,3651.9,0.1378]
[1753324712661,4.166,3652.3,3651.9,0.001]
[1753324712662,0.47582688,3652.1,3651.9,0.001]
[1753324712827,4.164,3652.0,3651.9,0.001]
[1753324713359,4.164,3652.0,3651.9,2.73930061]
[1753324714428,4.164,3652.0,3651.9,0.001]
[1753324714877,4.164,3652.0,3651.9,2.73930061]
[1753324715043,4.164,3652.0,3651.9,0.001]
[1753324715455,4.164,3652.0,3651.9,2.73930061]
[1753324715628,4.164,3652.0,3651.9,0.001]
[1753324716041,4.164,3652.0,3651.9,2.73930061]
[1753324721034,4.164,3652.0,3651.9,0.001]
[1753324722394,8.18972562,3652.0,3651.9,0.001]
[1753324722584,8.32652562,3652.0,3651.9,0.001]
[1753324723053,38.32652562,3652.0,3651.9,0.001]
[1753324723383,41.32652562,3652.0,3651.9,0.001]
[1753324725258,4.4243,3652.0,3651.9,0.001]
[1753324725658,0.1368,3652.0,3651.9,0.001]
[1753324725874,4.163,3652.0,3651.9,0.001]
[1753324726059,4.163,3652.0,3651.9,2.73928219]
[1753324726468,4.163,3652.0,3651.9,3.17198219]
[1753324726694,0.1388,3652.3,3651.9,0.4337]
[1753324726998,0.002,3652.3,3652.2,2.73807568]
[1753324727216,4.166,3652.3,3652.2,2.73807568]
[1753324728895,4.166,3652.3,3652.1,2.73812198]
[1753324729925,4.166,3652.3,3652.1,3.17082198]
[1753324730067,4.166,3652.3,3652.2,2.73807568]
[1753324730705,4.165,3652.3,3652.2,2.73807568]
[1753324731061,4.165,3652.3,3651.9,0.1378]
[1753324731285,0.03422594,3652.2,3651.9,0.1378]
[1753324731487,0.03422594,3652.2,3652.0,2.73821463]
[1753324731691,0.03422594,3652.2,3651.9,0.1378]
[1753324731692,0.03422594,3652.2,3651.9,2.876087]
[1753324731902,0.03422594,3652.2,3651.9,0.001]
[1753324731903,0.50402594,3652.2,3651.9,0.001]
[1753324732107,2.87502562,3652.0,3651.9,0.001]
[1753324732286,7.03802562,3652.0,3651.9,0.001]
[1753324732787,7.50782562,3652.0,3651.9,0.001]
[1753324734094,8.29102562,3652.0,3651.9,0.001]
[1753324739505,38.29102562,3652.0,3651.9,0.001]
[1753324740376,41.29102562,3652.0,3651.9,0.001]
[1753324741302,41.61206217,3652.0,3651.9,1e-08]
[1753324741486,42.20201762,3652.0,3651.9,1e-08]
[1753324741688,56.38098107,3652.0,3651.9,1e-08]
[1753324742006,55.79202562,3652.0,3651.9,1e-08]
[1753324742314,41.29202562,3652.0,3651.9,1e-08]
[1753324744806,47.87402562,3652.0,3651.9,1e-08]
[1753324745781,53.33530291,3652.0,3651.9,1e-08]
[1753324746110,63.51352962,3652.0,3651.9,1e-08]
[1753324747279,58.79952962,3652.0,3651.9,1e-08]
[1753324747511,22.28375524,3652.0,3651.9,1e-08]
[1753324747808,52.28375524,3652.0,3651.9,1e-08]
[1753324749016,2.73813882,3652.2,3651.9,1e-08]
[1753324749017,30.0,3652.2,3651.9,1e-08]
[1753324749189,2.73822562,3652.0,3651.9,1e-08]
[1753324749682,3.13432562,3652.0,3651.9,1e-08]
[1753324749872,33.13432562,3652.0,3651.9,1e-08]
[1753324750475,33.92732562,3652.0,3651.9,1e-08]
[1753324750674,33.53122562,3652.0,3651.9,1e-08]
[1753324750995,33.92732562,3652.0,3651.9,1e-08]
[1753324751377,34.43741915,3652.0,3651.9,1e-08]
[1753324751689,33.92732562,3652.0,3651.9,1e-08]
[1753324751887,36.92732562,3652.0,3651.9,1e-08]
[1753324752488,41.02775437,3652.0,3651.9,1e-08]
[1753324753280,36.53122562,3652.0,3651.9,1e-08]
[1753324753480,41.60641915,3652.0,3651.9,1e-08]
[1753324753720,41.09732562,3652.0,3651.9,1e-08]
[1753324753914,55.59732562,3652.0,3651.9,1e-08]
[1753324755012,51.03122562,3652.0,3651.9,1e-08]
[1753324755180,55.20122562,3652.0,3651.9,1e-08]
[1753324755577,55.59732562,3652.0,3651.9,1e-08]
[1753324756211,55.59932562,3652.0,3651.9,1e-08]
[1753324756684,36.53322562,3652.0,3651.9,1e-08]
[1753324756887,39.91122562,3652.0,3651.9,1e-08]
[1753324757312,5.74022562,3652.0,3651.9,1e-08]
[1753324757612,9.91122562,3652.0,3651.9,1e-08]
[1753324757933,4.173,3652.0,3651.9,0.45640001]
[1753324758142,0.002,3652.0,3651.9,1.22410001]
[1753324758411,4.3098,3652.0,3651.9,1.22410001]
[1753324758586,4.3098,3652.0,3651.9,2.0525315]
[1753324758786,4.3108,3652.0,3651.9,2.0525315]
[1753324759021,4.3108,3652.0,3651.9,1.22410001]
[1753324760593,0.002,3652.0,3651.9,1.22410001]
[1753324760797,4.174,3652.0,3651.9,3.96240062]
[1753324761508,0.002,3652.0,3651.9,3.96240062]
[1753324761718,4.173,3652.0,3651.9,3.96240062]
[1753324762438,4.173,3652.0,3651.9,5.07833687]
[1753324763125,4.173,3652.0,3651.9,1e-08]
[1753324764037,6.91122562,3652.0,3651.9,1e-08]
[1753324764234,4.173,3652.0,3651.9,1e-08]
[1753324764969,4.173,3652.0,3651.9,0.45640001]
[1753324765526,4.173,3652.0,3651.9,1.25910001]
[1753324765839,4.174,3652.0,3651.9,1.25910001]
[1753324766727,4.174,3652.0,3651.9,0.45640001]
[1753324766922,6.91222562,3652.0,3651.9,1e-08]
[1753324767623,7.72252562,3652.0,3651.9,1e-08]
[1753324768238,37.72252562,3652.0,3651.9,1e-08]
[1753324771704,38.11862562,3652.0,3651.9,1e-08]
[1753324772535,37.72252562,3652.0,3651.9,1e-08]
[1753324772721,37.72152562,3652.0,3651.9,1e-08]
[1753324773948,32.74022562,3652.0,3651.9,1e-08]
[1753324774243,6.91122562,3652.0,3651.9,0.45640001]
[1753324774448,4.173,3652.0,3651.9,0.45640001]
[1753324774612,6.91122562,3652.0,3651.9,0.45640001]
[1753324775349,6.91122562,3652.0,3651.9,1e-08]
[1753324776340,36.91122562,3652.0,3651.9,1e-08]
[1753324777747,32.74022562,3652.0,3651.9,1e-08]
[1753324777925,36.91122562,3652.0,3651.9,1e-08]
[1753324778128,36.91222562,3652.0,3651.9,1e-08]
[1753324778826,38.12512562,3652.0,3651.9,1e-08]
[1753324779433,37.72902562,3652.0,3651.9,1e-08]
[1753324779637,38.12512562,3652.0,3651.9,1e-08]
[1753324780838,41.71558889,3652.0,3651.9,1e-08]
[1753324781514,56.76558889,3652.0,3651.9,1e-08]
[1753324782852,57.50323709,3652.0,3651.9,1e-08]
[1753324783634,57.82427364,3652.0,3651.9,1e-08]
[1753324785934,55.81848889,3652.0,3651.9,1e-08]
[1753324786658,41.31848889,3652.0,3651.9,1e-08]
[1753324787352,41.32348889,3652.0,3651.9,1e-08]
[1753324790568,25.82348889,3652.0,3651.9,1e-08]
[1753324790758,55.82348889,3652.0,3651.9,1e-08]
[1753324793969,51.64748889,3652.0,3651.9,1e-08]
[1753324794145,40.50368889,3652.0,3651.9,0.45120001]
[1753324794345,40.50368889,3652.0,3651.9,1e-08]
[1753324795259,36.33068889,3652.0,3651.9,1e-08]
[1753324795462,40.50268889,3652.0,3651.9,1e-08]
[1753324799646,40.50068889,3652.0,3651.9,1e-08]
[1753324799942,40.50068889,3652.0,3651.9,0.45120001]
[1753324801359,36.33068889,3652.0,3651.9,1e-08]
[1753324801677,33.33068889,3652.0,3651.9,1e-08]
[1753324801879,0.002,3652.0,3651.9,1.24540001]
[1753324802066,0.002,3652.3,3651.9,0.45120001]
[1753324802271,4.173,3652.2,3652.0,0.7942]